[Event "Asian Zonal 3.3 2019"]
[Site "Ulaanbaatar"]
[Date "2019.04.13"]
[Round "7.8"]
[White "Gan-Erdene, Sugar"]
[Black "Tran, Tuan Minh"]
[Result "1-0"]
[ECO "B90"]
[WhiteElo "2375"]
[BlackElo "2553"]
[Annotator "ChessBase"]
[PlyCount "81"]
[EventDate "2019.04.07"]
[EventType "swiss"]
[EventRounds "9"]
[EventCountry "MGL"]
[SourceTitle "playchess.com"]
[Source "ChessBase"]
[SourceQuality "1"]
[TimeControl "40/5400+30:1800+30"]

1. e4 {[%emt 0:00:00]} c5 {[%emt 0:02:15]} 2. Nf3 {[%emt 0:00:00]} d6 {[%emt 0:00:04]} 3. d4 {[%emt 0:00:00]} cxd4 {[%emt 0:00:04]} 4. Nxd4 {[%emt 0:00:00]} Nf6 {[%emt 0:00:07]} 5. Nc3 {[%emt 0:00:00]} a6 {[%emt 0:00:04]} 6. Be3 {[%emt 0:00:01]} e5 {[%emt 0:00:04]} 7. Nb3 {[%emt 0:00:26]} Be7 {[%emt 0:00:37]} 8. h3 {[%emt 0:00:22]} Be6 {[%emt 0:00:27]} 9. Qf3 {[%emt 0:00:19]} Nbd7 {[%emt 0:00:19]} 10. g4 {[%emt 0:00:58]} h6 {[%emt 0:00:17]} 11. O-O-O {[%emt 0:00:54]} Rc8 {[%emt 0:05:49]} 12. Nd5 {[%emt 0:04:12]} Bxd5 {[%emt 0:01:16]} 13. exd5 {[%emt 0:00:06]} Nb6 {[%emt 0:00:05]} 14. Kb1 {[%emt 0:03:56]} e4 {[%emt 0:00:50]} 15. Bxb6 {[%emt 0:11:50]} Qxb6 {[%emt 0:00:06]} 16. Qe2 {[%emt 0:00:41]} O-O {[%emt 0:13:15]} 17. h4 {[%emt 0:01:56]} g6 {[%emt 0:27:12]} 18. g5 {[%emt 0:09:57]} Nh5 {[%emt 0:06:00]} 19. Rd4 {[%emt 0:27:50]} e3 {[%emt 0:18:17]} 20. Qxe3 {[%emt 0:13:29]} Rce8 {[%emt 0:00:13]} 21. Qf3 {[%emt 0:04:32]} hxg5 {[%emt 0:00:28]} 22. hxg5 {[%emt 0:01:16]} Bxg5 {[%emt 0:00:20]} 23. Bd3 {[%emt 0:00:38]} Re5 {[%emt 0:00:19]} 24. a3 {[%emt 0:02:57]} Bh6 {[%emt 0:03:03]} 25. Qg2 {[%emt 0:05:40]} Rg5 {[%emt 0:07:14]} 26. Qh2 {[%emt 0:03:17]} Bg7 {[%emt 0:01:57]} 27. Rb4 {[%emt 0:00:17]} Qc7 {[%emt 0:01:54]} 28. f4 {[%emt 0:02:44]} Rxd5 {[%emt 0:00:09]} 29. Qg2 {[%emt 0:01:39]} a5 {[%emt 0:07:07]} 30. Rc4 {[%emt 0:01:29]} Rc5 {[%emt 0:00:09]} 31. Nxc5 {[%emt 0:00:42]} dxc5 {[%emt 0:00:01]} 32. Qg5 {[%emt 0:01:17]} Rc8 {[%emt 0:02:20]} 33. a4 {[%emt 0:01:36]} b5 {[%emt 0:01:08]} 34. axb5 {[%emt 0:00:13]} Qb7 {[%emt 0:00:00]} 35. Re1 {[%emt 0:00:59]} Qxb5 {[%emt 0:00:18]} 36. b3 {[%emt 0:00:10]} Qd7 {[%emt 0:02:58]} 37. Qe7 {[%emt 0:00:50]} Qd5 {[%emt 0:00:51]} 38. Qe4 {[%emt 0:00:52]} Qd6 {[%emt 0:00:33]} 39. Qe7 {[%emt 0:00:18]} Qd5 {[%emt 0:00:00]} 40. Rce4 {[%emt 0:00:00]} Nf6 {[%emt 0:00:00]} 41. Bc4 {[%emt 0:03:49]} 1-0

[Event "Asian Zonal 3.3 2019"]
[Site "Ulaanbaatar"]
[Date "2019.04.13"]
[Round "7.9"]
[White "Khatanbaatar, Bazar"]
[Black "Megaranto, Susanto"]
[Result "0-1"]
[ECO "B09"]
[WhiteElo "2337"]
[BlackElo "2523"]
[Annotator "ChessBase"]
[PlyCount "80"]
[EventDate "2019.04.07"]
[EventType "swiss"]
[EventRounds "9"]
[EventCountry "MGL"]
[SourceTitle "playchess.com"]
[Source "ChessBase"]
[SourceQuality "1"]
[TimeControl "40/5400+30:1800+30"]

1. e4 {[%emt 0:00:00]} d6 {[%emt 0:00:00]} 2. d4 {[%emt 0:00:00]} Nf6 {[%emt 0:00:00]} 3. Nc3 {[%emt 0:00:00]} g6 {[%emt 0:00:00]} 4. f4 {[%emt 0:00:24]} Bg7 {[%emt 0:00:11]} 5. Nf3 {[%emt 0:00:55]} O-O {[%emt 0:00:30]} 6. Bd3 {[%emt 0:01:19]} Na6 {[%emt 0:01:05]} 7. a3 {[%emt 0:06:17]} c5 {[%emt 0:01:25]} 8. d5 {[%emt 0:02:35]} Nc7 {[%emt 0:12:49]} 9. a4 {[%emt 0:04:06]} Bg4 {[%emt 0:04:36]} 10. h3 {[%emt 0:02:45]} Bxf3 {[%emt 0:00:13]} 11. Qxf3 {[%emt 0:00:07]} a6 {[%emt 0:07:59]} 12. O-O {[%emt 0:01:37]} Rb8 {[%emt 0:03:52]} 13. a5 {[%emt 0:03:58]} b5 {[%emt 0:00:58]} 14. axb6 {[%emt 0:06:16]} Rxb6 {[%emt 0:00:02]} 15. Nd1 {[%emt 0:00:35]} e6 {[%emt 0:08:15]} 16. dxe6 {[%emt 0:02:41]} fxe6 {[%emt 0:01:11]} 17. c3 {[%emt 0:04:40]} d5 {[%emt 0:07:46]} 18. exd5 {[%emt 0:09:19]} exd5 {[%emt 0:00:32]} 19. f5 {[%emt 0:00:24]} c4 {[%emt 0:12:39]} 20. Bc2 {[%emt 0:05:29]} d4 {[%emt 0:02:27]} 21. cxd4 {[%emt 0:00:43]} Nb5 {[%emt 0:00:29]} 22. Be3 {[%emt 0:05:33]} Nd5 {[%emt 0:06:12]} 23. Be4 {[%emt 0:08:17]} Nxe3 {[%emt 0:01:18]} 24. Nxe3 {[%emt 0:00:15]} Nxd4 {[%emt 0:00:24]} 25. Qg4 {[%emt 0:00:54]} h5 {[%emt 0:05:42]} 26. Qd1 {[%emt 0:01:33]} Rxb2 {[%emt 0:01:25]} 27. Re1 {[%emt 0:15:43]} Ne2+ {[%emt 0:04:10]} 28. Rxe2 {[%emt 0:03:25]} Qxd1+ {[%emt 0:00:06]} 29. Rxd1 {[%emt 0:00:36]} Rxe2 {[%emt 0:00:04]} 30. Bd5+ {[%emt 0:00:16]} Kh8 {[%emt 0:04:36]} 31. Nxc4 {[%emt 0:00:11]} gxf5 {[%emt 0:00:46]} 32. Bf3 {[%emt 0:01:09]} Rc2 {[%emt 0:00:07]} 33. Ne3 {[%emt 0:00:13]} Rc5 {[%emt 0:00:15]} 34. Bxh5 {[%emt 0:02:29]} a5 {[%emt 0:04:57]} 35. g4 {[%emt 0:12:46]} fxg4 {[%emt 0:01:01]} 36. hxg4 {[%emt 0:00:00]} Bh6 {[%emt 0:02:56]} 37. Nf5 {[%emt 0:00:00]} Rc1 {[%emt 0:00:09]} 38. Rxc1 {[%emt 0:00:00]} Bxc1 {[%emt 0:00:06]} 39. Ne7 {[%emt 0:00:00]} Kg7 {[%emt 0:00:55]} 40. Nd5 {[%emt 0:00:00]} a4 {[%emt 0:00:00]} 0-1

[Event "Asian Zonal 3.3 2019"]
[Site "Ulaanbaatar"]
[Date "2019.04.13"]
[Round "7.10"]
[White "Batsuren, Dambasuren"]
[Black "Nasanjargal, Urtnasan"]
[Result "0-1"]
[ECO "A64"]
[WhiteElo "2444"]
[BlackElo "2482"]
[Annotator "ChessBase"]
[PlyCount "88"]
[EventDate "2019.04.07"]
[EventType "swiss"]
[EventRounds "9"]
[EventCountry "MGL"]
[SourceTitle "playchess.com"]
[Source "ChessBase"]
[SourceQuality "1"]
[TimeControl "40/5400+30:1800+30"]

1. d4 {[%emt 0:00:00]} Nf6 {[%emt 0:00:00]} 2. c4 {[%emt 0:00:00]} g6 {[%emt 0:00:13]} 3. Nc3 {[%emt 0:00:00]} Bg7 {[%emt 0:00:14]} 4. Nf3 {[%emt 0:00:00]} O-O {[%emt 0:00:11]} 5. g3 {[%emt 0:00:04]} c5 {[%emt 0:00:14]} 6. d5 {[%emt 0:00:17]} d6 {[%emt 0:00:24]} 7. Bg2 {[%emt 0:00:07]} e6 {[%emt 0:00:08]} 8. O-O {[%emt 0:00:40]} exd5 {[%emt 0:00:11]} 9. cxd5 {[%emt 0:00:07]} Re8 {[%emt 0:00:10]} 10. Nd2 {[%emt 0:01:31]} a6 {[%emt 0:02:08]} 11. a4 {[%emt 0:00:09]} Nbd7 {[%emt 0:00:09]} 12. Nc4 {[%emt 0:00:09]} Ne5 {[%emt 0:00:15]} 13. Nxe5 {[%emt 0:02:51]} Rxe5 {[%emt 0:00:07]} 14. e4 {[%emt 0:00:17]} Rb8 {[%emt 0:02:27]} 15. a5 {[%emt 0:02:14]} Re8 {[%emt 0:00:48]} 16. Re1 {[%emt 0:02:04]} Ng4 {[%emt 0:04:45]} 17. h3 {[%emt 0:08:44]} Ne5 {[%emt 0:00:37]} 18. f4 {[%emt 0:04:31]} Nc4 {[%emt 0:01:34]} 19. Qa4 {[%emt 0:00:29]} b5 {[%emt 0:01:00]} 20. axb6 {[%emt 0:00:08]} Nxb6 {[%emt 0:00:59]} 21. Qa2 {[%emt 0:01:09]} a5 {[%emt 0:08:41]} 22. Bf1 {[%emt 0:13:08]} h5 {[%emt 0:09:28]} 23. Bd2 {[%emt 0:14:31]} Bd4+ {[%emt 0:00:41]} 24. Kh2 {[%emt 0:08:24]} h4 {[%emt 0:00:43]} 25. g4 {[%emt 0:00:06]} Bf2 {[%emt 0:00:34]} 26. Re2 {[%emt 0:00:20]} Bg3+ {[%emt 0:02:12]} 27. Kg1 {[%emt 0:00:07]} Qf6 {[%emt 0:07:59]} 28. e5 {[%emt 0:02:24]} dxe5 {[%emt 0:10:12]} 29. Ne4 {[%emt 0:00:16]} Qg7 {[%emt 0:06:16]} 30. Nxg3 {[%emt 0:08:34]} hxg3 {[%emt 0:00:06]} 31. Bc3 {[%emt 0:04:06]} Qh6 {[%emt 0:02:54]} 32. Bxe5 {[%emt 0:05:01]} Ba6 {[%emt 0:03:36]} 33. g5 {[%emt 0:06:30]} Qh4 {[%emt 0:02:02]} 34. Rd2 {[%emt 0:00:26]} Rxe5 {[%emt 0:08:26]} 35. fxe5 {[%emt 0:00:12]} Qxg5 {[%emt 0:00:32]} 36. Rad1 {[%emt 0:08:29]} Qe3+ {[%emt 0:03:34]} 37. Kg2 {[%emt 0:00:06]} Qe4+ {[%emt 0:00:47]} 38. Kg1 {[%emt 0:01:53]} Bxf1 {[%emt 0:00:31]} 39. Kxf1 {[%emt 0:00:29]} Nc4 {[%emt 0:01:43]} 40. b3 {[%emt 0:00:00]} Qh1+ {[%emt 0:00:00]} 41. Ke2 {[%emt 0:00:52]} Qg2+ {[%emt 0:04:09]} 42. Ke1 {[%emt 0:01:05]} Qg1+ {[%emt 0:02:00]} 43. Ke2 {[%emt 0:00:07]} Qf2+ {[%emt 0:00:09]} 44. Kd3 {[%emt 0:00:19]} Qf3+ {[%emt 0:00:29]} 0-1

[Event "Asian Zonal 3.3 2019"]
[Site "Ulaanbaatar"]
[Date "2019.04.13"]
[Round "7.15"]
[White "Anand, Batsukh"]
[Black "Chinguun, Sumiya"]
[Result "1/2-1/2"]
[ECO "A00"]
[WhiteElo "1771"]
[BlackElo "2250"]
[Annotator "RC"]
[PlyCount "61"]
[EventDate "2019.04.07"]
[EventType "swiss"]
[EventRounds "9"]
[EventCountry "MGL"]
[SourceTitle "playchess.com"]
[Source "ChessBase"]
[SourceQuality "1"]
[TimeControl "40/5400+30:1800+30"]

1. Nf3 Nf6 2. b3 d6 3. d4 g6 4. Bb2 Bg7 5. g3 O-O 6. Bg2 c6 7. O-O a5 8. a4 h6 9. Nbd2 Be6 10. e4 Qc8 11. Re1 Bh3 12. Qe2 Bxg2 13. Kxg2 Ne8 14. Nc4 Qd8 15. Rad1 Nc7 16. Qd2 d5 17. exd5 Nxd5 18. Ne3 Nxe3+ 19. Qxe3 e6 20. Ba3 Re8 21. Ne5 b5 22. Qf3 Qd5 23. c4 Qxf3+ 24. Kxf3 Bxe5 25. dxe5 bxa4 26. bxa4 Na6 27. Bd6 Nb4 28. c5 Ra7 29. Rb1 Kg7 30. Kg2 Rd8 31. Rb3 1/2-1/2

[Event "Asian Zonal 3.3 2019"]
[Site "Ulaanbaatar"]
[Date "2019.04.13"]
[Round "7.23"]
[White "Danzanjunai, Ganbat"]
[Black "Amgalantengis, Enkh-Amgalan"]
[Result "0-1"]
[ECO "A00"]
[WhiteElo "1608"]
[BlackElo "1832"]
[Annotator "NA RC"]
[PlyCount "108"]
[EventDate "2019.04.07"]
[EventType "swiss"]
[EventRounds "9"]
[EventCountry "MGL"]
[SourceTitle "playchess.com"]
[Source "ChessBase"]
[SourceQuality "1"]
[TimeControl "40/5400+30:1800+30"]

1. e4 c6 2. d4 d5 3. exd5 cxd5 4. Bd3 Nc6 5. c3 Nf6 6. Bf4 e6 7. Nf3 Bd6 8. Bg3 Ne4 9. Nbd2 Nxg3 10. hxg3 h6 11. Qe2 Bd7 12. Ne5 Nxe5 13. dxe5 Bc5 14. Nb3 Qb6 15. O-O O-O 16. g4 Be7 17. g3 f6 18. c4 fxe5 19. cxd5 Bf6 20. dxe6 Bxe6 21. Qe4 Rfd8 22. Rfd1 Rac8 23. Rac1 Rxc1 24. Rxc1 Bd5 25. Bc4 Bxc4 26. Qxc4+ Kh8 27. Qc5 Qxc5 28. Nxc5 Rc8 29. Nd3 Rd8 30. Nc5 Rc8 31. Nd3 Rxc1+ 32. Nxc1 Kg8 33. Kg2 Kf7 34. Kf3 e4+ 35. Kxe4 Bxb2 36. Nd3 Bf6 37. f4 Ke7 38. Kf5 Kd6 39. Kg6 b5 40. Kf5 a5 41. g5 hxg5 42. fxg5 Bc3 43. Ke4 b4 44. Nf4 Be5 45. Kd3 a4 46. Kc2 Bxf4 47. gxf4 Ke6 48. Kd3 b3 49. axb3 axb3 50. Kc3 Kf5 51. Kxb3 Kxf4 52. g6 Kf5 53. Kc4 Kxg6 54. Kd3 Kf5 0-1

[Event "Asian Zonal 3.3 2019"]
[Site "Ulaanbaatar"]
[Date "2019.04.14"]
[Round "8.7"]
[White "Itgelt, Khuyagtsogt"]
[Black "Bilguun, Sumiya"]
[Result "*"]
[ECO "B11"]
[WhiteElo "2056"]
[BlackElo "2488"]
[Annotator "ChessBase"]
[PlyCount "46"]
[EventDate "2019.04.07"]
[EventType "swiss"]
[EventRounds "9"]
[EventCountry "MGL"]
[SourceTitle "playchess.com"]
[Source "ChessBase"]
[SourceQuality "1"]
[TimeControl "40/5400+30:1800+30"]

1. e4 {[%emt 0:00:00]} c6 {[%emt 0:00:04]} 2. Nf3 {[%emt 0:00:00]} d5 {[%emt 0:01:03]} 3. Nc3 {[%emt 0:00:00]} Bg4 {[%emt 0:01:14]} 4. Be2 {[%emt 0:00:11]} e6 {[%emt 0:03:09]} 5. h3 {[%emt 1:32:19]} Bh5 {[%emt 0:01:57]} 6. O-O {[%emt 0:11:02]} Nf6 {[%emt 0:06:16]} 7. Ne5 {[%emt 0:11:16]} Bxe2 {[%emt 1:19:47]} 8. Qxe2 {[%emt 0:00:04]} Be7 {[%emt 0:10:49]} 9. d3 {[%emt 0:14:02]} O-O {[%emt 1:07:47]} 10. f4 {[%emt 0:00:51]} Nbd7 {[%emt 1:06:35]} 11. Nf3 {[%emt 0:01:50]} dxe4 {[%emt 0:07:25]} 12. dxe4 {[%emt 0:01:05]} Nc5 {[%emt 0:01:31]} 13. Kh2 {[%emt 0:02:05]} Qc7 {[%emt 0:02:02]} 14. Bd2 {[%emt 0:06:09]} Rad8 {[%emt 0:02:20]} 15. e5 {[%emt 0:02:26]} Nd5 {[%emt 0:01:21]} 16. Ne4 {[%emt 0:00:15]} Nxe4 {[%emt 0:04:48]} 17. Qxe4 {[%emt 0:00:18]} c5 {[%emt 0:02:35]} 18. c4 {[%emt 0:07:05]} Nb6 {[%emt 0:01:19]} 19. Ba5 {[%emt 0:06:09]} Rd7 {[%emt 0:03:36]} 20. Rad1 {[%emt 0:00:42]} Rfd8 {[%emt 0:38:36]} 21. Rxd7 {[%emt 0:01:10]} Qxd7 {[%emt 0:00:13]} 22. Rf2 {[%emt 0:02:07]} Qc8 {[%emt 0:00:50]} 23. b3 {[%emt 0:04:48]} Rf8 {[%emt 0:06:36]} *

[Event "Asian Zonal 3.3 2019"]
[Site "Ulaanbaatar"]
[Date "2019.04.14"]
[Round "8.8"]
[White "Gomez, John Paul"]
[Black "Amartuvshin, Ganzorig"]
[Result "*"]
[ECO "B51"]
[WhiteElo "2460"]
[BlackElo "2373"]
[Annotator "ChessBase"]
[PlyCount "42"]
[EventDate "2019.04.07"]
[EventType "swiss"]
[EventRounds "9"]
[EventCountry "MGL"]
[SourceTitle "playchess.com"]
[Source "ChessBase"]
[SourceQuality "1"]
[TimeControl "40/5400+30:1800+30"]

1. e4 {[%emt 0:00:00]} c5 {[%emt 0:00:00]} 2. Nf3 {[%emt 0:00:00]} d6 {[%emt 0:00:00]} 3. Bb5+ {[%emt 0:00:01]} Nd7 {[%emt 1:31:30]} 4. c3 {[%emt 0:00:38]} Ngf6 {[%emt 1:32:00]} 5. Qe2 {[%emt 0:00:26]} a6 {[%emt 0:01:16]} 6. Ba4 {[%emt 0:00:06]} e5 {[%emt 0:13:30]} 7. O-O {[%emt 0:07:56]} Be7 {[%emt 0:05:14]} 8. d4 {[%emt 0:00:53]} O-O {[%emt 0:00:47]} 9. Bc2 {[%emt 0:01:53]} Qc7 {[%emt 0:01:22]} 10. Bg5 {[%emt 0:06:49]} Re8 {[%emt 0:00:51]} 11. dxe5 {[%emt 0:05:12]} dxe5 {[%emt 0:08:00]} 12. a4 {[%emt 0:05:36]} b6 {[%emt 0:08:14]} 13. Bxf6 {[%emt 0:05:38]} Nxf6 {[%emt 0:01:02]} 14. Nbd2 {[%emt 1:01:52]} Bf8 {[%emt 0:05:41]} 15. Bd3 {[%emt 0:16:48]} Bb7 {[%emt 0:02:00]} 16. Bc4 {[%emt 0:02:56]} Re7 {[%emt 0:00:55]} 17. Ne1 {[%emt 0:42:57]} g6 {[%emt 0:07:03]} 18. Nc2 {[%emt 0:01:12]} Bh6 {[%emt 0:00:40]} 19. f3 {[%emt 0:01:23]} Bc6 {[%emt 0:08:26]} 20. Rfd1 {[%emt 0:04:21]} Qc8 {[%emt 0:13:09]} 21. Nf1 {[%emt 0:01:34]} Qe8 {[%emt 0:05:29]} *

[Event "Asian Zonal 3.3 2019"]
[Site "Ulaanbaatar"]
[Date "2019.04.14"]
[Round "8.9"]
[White "Itgelt, Khuyagtsogt"]
[Black "Bilguun, Sumiya"]
[Result "0-1"]
[ECO "A30"]
[WhiteElo "2056"]
[BlackElo "2488"]
[Annotator "ChessBase"]
[PlyCount "72"]
[EventDate "2019.04.07"]
[EventType "swiss"]
[EventRounds "9"]
[EventCountry "MGL"]
[SourceTitle "playchess.com"]
[Source "ChessBase"]
[SourceQuality "1"]
[TimeControl "40/5400+30:1800+30"]

1. d4 {[%emt 0:00:00]} Nf6 {[%emt 0:00:00]} 2. c4 {[%emt 0:00:00]} b6 {[%emt 0:00:00]} 3. g3 {[%emt 0:04:41]} Bb7 {[%emt 0:00:00]} 4. Nf3 {[%emt 0:00:14]} g6 {[%emt 0:00:05]} 5. Bg2 {[%emt 0:00:44]} Bg7 {[%emt 0:00:01]} 6. O-O {[%emt 0:00:43]} O-O {[%emt 0:00:17]} 7. b3 {[%emt 0:07:16]} c5 {[%emt 0:02:37]} 8. Bb2 {[%emt 0:02:03]} cxd4 {[%emt 0:00:58]} 9. Bxd4 {[%emt 0:03:17]} d6 {[%emt 0:01:08]} 10. Nbd2 {[%emt 0:02:49]} Nbd7 {[%emt 0:00:31]} 11. Qc2 {[%emt 0:05:48]} Rc8 {[%emt 0:02:52]} 12. Qb2 {[%emt 0:02:35]} Qc7 {[%emt 0:06:43]} 13. Rac1 {[%emt 0:03:35]} Qb8 {[%emt 0:00:54]} 14. h3 {[%emt 0:02:36]} a6 {[%emt 0:07:38]} 15. Ne1 {[%emt 0:10:23]} b5 {[%emt 0:01:34]} 16. Bxb7 {[%emt 0:03:54]} Qxb7 {[%emt 0:00:12]} 17. Nd3 {[%emt 0:00:12]} Rfe8 {[%emt 0:03:54]} 18. cxb5 {[%emt 0:12:30]} axb5 {[%emt 0:00:46]} 19. Rxc8 {[%emt 0:00:28]} Rxc8 {[%emt 0:00:10]} 20. Rc1 {[%emt 0:00:19]} e5 {[%emt 0:05:23]} 21. Bc3 {[%emt 0:14:18]} Nd5 {[%emt 0:02:32]} 22. e4 {[%emt 0:03:33]} b4 {[%emt 0:02:05]} 23. Bd4 {[%emt 0:06:12]} exd4 {[%emt 0:10:43]} 24. exd5 {[%emt 0:02:49]} Rc3 {[%emt 0:00:51]} 25. Nf4 {[%emt 0:02:31]} Nc5 {[%emt 0:07:41]} 26. Re1 {[%emt 0:01:05]} Be5 {[%emt 0:00:21]} 27. Ne4 {[%emt 0:03:22]} Nxe4 {[%emt 0:01:06]} 28. Rxe4 {[%emt 0:00:07]} Bxf4 {[%emt 0:00:17]} 29. Rxf4 {[%emt 0:03:18]} Qxd5 {[%emt 0:00:19]} 30. Qd2 {[%emt 0:00:05]} Qc6 {[%emt 0:00:12]} 31. Kh2 {[%emt 0:01:40]} Rc1 {[%emt 0:00:50]} 32. Re4 {[%emt 0:00:04]} Qxe4 {[%emt 0:00:16]} 33. Qxc1 {[%emt 0:00:03]} d3 {[%emt 0:00:33]} 34. Qc8+ {[%emt 0:01:21]} Kg7 {[%emt 0:00:18]} 35. Qd7 {[%emt 0:00:30]} Qd4 {[%emt 0:00:08]} 36. h4 {[%emt 0:01:49]} d2 {[%emt 0:00:15]} 0-1

[Event "Asian Zonal 3.3 2019"]
[Site "Ulaanbaatar"]
[Date "2019.04.14"]
[Round "8.10"]
[White "Gomez, John Paul"]
[Black "Amartuvshin, Ganzorig"]
[Result "1-0"]
[ECO "E12"]
[WhiteElo "2460"]
[BlackElo "2373"]
[Annotator "ChessBase"]
[PlyCount "63"]
[EventDate "2019.04.07"]
[EventType "swiss"]
[EventRounds "9"]
[EventCountry "MGL"]
[SourceTitle "playchess.com"]
[Source "ChessBase"]
[SourceQuality "1"]
[TimeControl "40/5400+30:1800+30"]

1. c4 {[%emt 0:01:11]} Nf6 {[%emt 0:00:00]} 2. Nc3 {[%emt 0:00:25]} c5 {[%emt 0:00:00]} 3. Nf3 {[%emt 0:00:36]} b6 {[%emt 0:01:58]} 4. e3 {[%emt 0:01:50]} Bb7 {[%emt 0:00:35]} 5. d4 {[%emt 0:00:12]} cxd4 {[%emt 0:00:17]} 6. exd4 {[%emt 0:00:07]} e6 {[%emt 0:05:05]} 7. a3 {[%emt 0:00:29]} d6 {[%emt 0:02:29]} 8. Bd3 {[%emt 0:01:01]} Be7 {[%emt 0:00:06]} 9. O-O {[%emt 0:00:16]} O-O {[%emt 0:00:27]} 10. d5 {[%emt 0:01:59]} e5 {[%emt 0:01:22]} 11. b4 {[%emt 0:00:53]} Nbd7 {[%emt 0:02:25]} 12. Bb2 {[%emt 0:00:14]} Nh5 {[%emt 0:02:11]} 13. g3 {[%emt 0:04:16]} f5 {[%emt 0:02:32]} 14. Nh4 {[%emt 0:05:27]} Bxh4 {[%emt 0:09:55]} 15. Qxh5 {[%emt 0:00:19]} Bg5 {[%emt 0:00:11]} 16. f4 {[%emt 0:07:24]} exf4 {[%emt 0:23:57]} 17. gxf4 {[%emt 0:00:19]} Bh6 {[%emt 0:01:01]} 18. Bxf5 {[%emt 0:00:43]} Nf6 {[%emt 0:00:09]} 19. Be6+ {[%emt 0:02:03]} Kh8 {[%emt 0:00:04]} 20. Qh3 {[%emt 0:00:32]} Qc7 {[%emt 0:07:59]} 21. Nb5 {[%emt 0:01:46]} Qxc4 {[%emt 0:04:39]} 22. Nxd6 {[%emt 0:00:20]} Qc2 {[%emt 0:00:18]} 23. Rf2 {[%emt 0:01:04]} Qc7 {[%emt 0:03:41]} 24. Be5 {[%emt 0:01:13]} Rad8 {[%emt 0:00:07]} 25. Nf5 {[%emt 0:04:58]} Qc4 {[%emt 0:00:12]} 26. Nxh6 {[%emt 0:00:41]} gxh6 {[%emt 0:03:43]} 27. Qxh6 {[%emt 0:00:30]} Rg8+ {[%emt 0:00:30]} 28. Qg5 {[%emt 0:00:30]} Rxg5+ {[%emt 0:01:07]} 29. fxg5 {[%emt 0:00:11]} Rg8 {[%emt 0:05:52]} 30. Bxf6+ {[%emt 0:00:32]} Rg7 {[%emt 0:00:16]} 31. Be5 {[%emt 0:00:26]} h6 {[%emt 0:04:26]} 32. g6 {[%emt 0:00:17]} 1-0

[Event "Asian Zonal 3.3 2019"]
[Site "Ulaanbaatar"]
[Date "2019.04.14"]
[Round "8.14"]
[White "Garidmagnai, Byambasuren"]
[Black "Altanbayar, Tserenpeljee"]
[Result "1-0"]
[ECO "A00"]
[WhiteElo "2313"]
[BlackElo "2060"]
[Annotator "RC"]
[PlyCount "135"]
[EventDate "2019.04.07"]
[EventType "swiss"]
[EventRounds "9"]
[EventCountry "MGL"]
[SourceTitle "playchess.com"]
[Source "ChessBase"]
[SourceQuality "1"]
[TimeControl "40/5400+30:1800+30"]

1. Nf3 Nf6 2. b3 c5 3. Bb2 b6 4. g3 Bb7 5. Bg2 d6 6. d4 Nbd7 7. O-O Rc8 8. c4 cxd4 9. Bxd4 Qc7 10. Re1 Qb8 11. Bb2 a6 12. Nc3 b5 13. cxb5 axb5 14. e4 e6 15. Nd4 Be7 16. Ndxb5 O-O 17. a4 Rfd8 18. Ba3 Ba6 19. Rc1 Nc5 20. b4 Ncd7 21. Nd4 Bc4 22. b5 Ne5 23. Nb1 Qa7 24. Nc6 Rxc6 25. bxc6 Nd3 26. Re3 Nxc1 27. Qxc1 Qxa4 28. Rc3 Ba6 29. c7 Rc8 30. e5 Ne4 31. Rc6 Bg5 32. Qc2 Qxc2 33. Rxc2 d5 34. f4 Bh6 35. Bxe4 dxe4 36. Rc6 Bb7 37. Rd6 f6 38. f5 Be3+ 39. Kg2 fxe5 40. fxe6 Bg5 41. Rd7 e3+ 42. Kf1 Bc6 43. Be7 Bxe7 44. Rxe7 Bb5+ 45. Ke1 Rf8 46. Rf7 Ba6 47. Rxf8+ Kxf8 48. Nc3 Ke7 49. Na4 Kd6 50. e7 Kxe7 51. Nb6 Kf6 52. c8=Q Bxc8 53. Nxc8 Kg5 54. Ke2 Kg4 55. Kxe3 h5 56. Nd6 Kh3 57. Ne4 Kxh2 58. Kf3 h4 59. g4 h3 60. Kf2 Kh1 61. Kg3 Kg1 62. Kxh3 Kf1 63. g5 g6 64. Kg4 Ke2 65. Nd6 Ke3 66. Nf7 e4 67. Ne5 Kd4 68. Nxg6 1-0

[Event "Asian Zonal 3.3 2019"]
[Site "Ulaanbaatar"]
[Date "2019.04.14"]
[Round "8.18"]
[White "Khuslen, Altan-Ochir"]
[Black "Galmandakh, Badrakh"]
[Result "0-1"]
[ECO "A00"]
[WhiteElo "1927"]
[BlackElo "2222"]
[Annotator "RC"]
[PlyCount "112"]
[EventDate "2019.04.07"]
[EventType "swiss"]
[EventRounds "9"]
[EventCountry "MGL"]
[SourceTitle "playchess.com"]
[Source "ChessBase"]
[SourceQuality "1"]
[TimeControl "40/5400+30:1800+30"]

1. e4 d6 2. d4 Nf6 3. Nc3 e5 4. Nf3 Nbd7 5. Bc4 Be7 6. O-O O-O 7. Re1 a6 8. a4 b6 9. h3 Bb7 10. d5 Nc5 11. b4 Ncd7 12. Be3 a5 13. bxa5 Rxa5 14. Nd2 Nc5 15. Bxc5 bxc5 16. Qe2 Qc8 17. Bb5 g6 18. Nc4 Ra8 19. Reb1 Nh5 20. a5 Nf4 21. Qg4 f5 22. exf5 h5 23. Qg3 Rxf5 24. h4 Qd8 25. Ne3 Bxh4 26. Qh2 Ne2+ 27. Bxe2 Bxf2+ 28. Kh1 Bxe3 29. Qg3 Bd4 30. Qxg6+ Kh8 31. Qh6+ Kg8 32. Qg6+ Kh8 33. Qxf5 Qh4+ 34. Qh3 Qxh3+ 35. gxh3 Bxc3 36. Rxb7 Bxa1 37. a6 Kg7 38. Bb5 c4 39. Rxc7+ Kf6 40. Rxc4 Bd4 41. Ra4 Ba7 42. Bc6 Rg8 43. Ra1 Rg3 44. Rf1+ Ke7 45. Rb1 Kf6 46. Rb7 Bc5 47. Rb5 Rxh3+ 48. Kg2 Ra3 49. Bb7 e4 50. Rb1 Ra2 51. Kg3 Kg5 52. Rh1 Rxc2 53. Ra1 Bd4 54. Kh3 Bxa1 55. a7 Be5 56. a8=Q Rh2# 0-1

[Event "Asian Zonal 3.3 2019"]
[Site "Ulaanbaatar"]
[Date "2019.04.14"]
[Round "8.21"]
[White "Amgalantengis, Enkh-Amgalan"]
[Black "Chuluun, Gonchigdorj"]
[Result "1/2-1/2"]
[ECO "A00"]
[WhiteElo "1832"]
[BlackElo "1982"]
[Annotator "NA RC"]
[PlyCount "99"]
[EventDate "2019.04.07"]
[EventType "swiss"]
[EventRounds "9"]
[EventCountry "MGL"]
[SourceTitle "playchess.com"]
[Source "ChessBase"]
[SourceQuality "1"]
[TimeControl "40/5400+30:1800+30"]

1. d4 f5 2. c4 b6 3. Nc3 Nf6 4. Bg5 e6 5. e4 fxe4 6. Nxe4 Bb4+ 7. Nc3 Bb7 8. Nf3 O-O 9. Be2 d6 10. O-O Bxc3 11. bxc3 Nbd7 12. Nd2 e5 13. Bf3 Bxf3 14. Nxf3 Qe8 15. Bxf6 gxf6 16. Qe2 exd4 17. Qxe8 Raxe8 18. cxd4 Re4 19. Rfe1 Rfe8 20. Kf1 Kf8 21. Rxe4 Rxe4 22. Re1 Rxe1+ 23. Kxe1 c5 24. Kd2 Ke7 25. Ke3 a6 26. Ke4 b5 27. cxb5 axb5 28. Kd5 c4 29. Kc6 b4 30. Kb5 b3 31. axb3 cxb3 32. Nd2 b2 33. Kc4 Ke6 34. Kc3 Kd5 35. Kxb2 Kxd4 36. Kc2 Ne5 37. Nb3+ Kc4 38. Nd2+ Kd5 39. Nf1 Ke4 40. Nd2+ Kf4 41. h3 d5 42. Kc3 Nc6 43. Kd3 Ke5 44. Nf3+ Kf4 45. Nd2 h5 46. g3+ Kf5 47. Nb3 Ke5 48. f4+ Kd6 49. g4 hxg4 50. hxg4 1/2-1/2